bitfinex/quotes_SOLUSD_20250625
["timestamp","ask_amount","ask_price","bid_price","bid_amount"]
[1750857916970,34.2062,147.22,147.16,34.34453363]
[1750857917186,10.56089678,147.2,147.16,34.34453363]
[1750857917487,10.56089678,147.19,147.16,23.78363685]
[1750857917678,34.2062,147.22,147.16,23.78363685]
[1750857917866,10.56089678,147.19,147.16,23.78363685]
[1750857918068,10.56089678,147.18,147.16,6.79532481]
[1750857918291,34.2062,147.22,147.16,6.79532481]
[1750857918492,10.56089678,147.19,147.16,6.79532481]
[1750857919274,10.56089678,147.17,147.14,6.79624847]
[1750857919472,10.56089678,147.16,147.14,6.79624847]
[1750857919673,10.56089678,147.15,147.1,10.56089678]
[1750857919899,10.56089678,147.15,147.09,23.7938118]
[1750857920075,10.56089678,147.14,147.1,10.56089678]
[1750857921097,18.64964886,147.19,147.1,10.56089678]
[1750857921405,10.56089678,147.14,147.1,10.56089678]
[1750857921571,18.64964886,147.19,147.09,23.7938118]
[1750857921572,10.56089678,147.15,147.11,10.56089678]
[1750857921995,10.56089678,147.15,147.12,6.79717237]
[1750857922797,10.56089678,147.16,147.12,34.35100009]
[1750857923001,10.56089678,147.16,147.12,23.79010331]
[1750857923219,26.0,147.2,147.12,23.79010331]
[1750857923501,26.0,147.2,147.13,18.64964886]
[1750857923502,10.56089678,147.2,147.13,18.64964886]
[1750857923672,10.56089678,147.19,147.13,18.64964886]
[1750857923878,10.56089678,147.19,147.15,10.56089678]
[1750857924201,8.2062,147.22,147.15,10.56089678]
[1750857924372,10.56089678,147.19,147.15,10.56089678]
[1750857924790,10.56089678,147.21,147.17,10.56089678]
[1750857925596,10.56089678,147.2,147.16,10.56089678]
[1750857925987,10.56089678,147.18,147.14,23.78686964]
[1750857926188,10.56089678,147.18,147.14,34.34776642]
[1750857926523,8.2062,147.22,147.14,23.78686964]
[1750857926682,10.56089678,147.21,147.17,10.56089678]
[1750857926874,10.56089678,147.21,147.16,10.56089678]
[1750857927081,10.56089678,147.21,147.14,23.78686964]
[1750857927402,1.6146,147.22,147.18,10.56089678]
[1750857927578,38.17549678,147.22,147.18,10.56089678]
[1750857927775,1.6146,147.22,147.19,10.56089678]
[1750857927991,10.56089678,147.25,147.2,10.56089678]
[1750857928297,10.56089678,147.21,147.14,26.0]
[1750857928484,10.56089678,147.16,147.14,6.79613219]
[1750857928801,12.13779678,147.18,147.14,6.79613219]
[1750857928971,1.5769,147.18,147.14,17.35702897]
[1750857929169,10.56089678,147.17,147.14,6.79613219]
[1750857930099,10.56089678,147.17,147.14,23.78675336]
[1750857930271,1.5769,147.18,147.14,23.78675336]
[1750857930473,10.56089678,147.17,147.14,23.78675336]
[1750857931601,1.5769,147.18,147.14,23.78675336]
[1750857931799,10.56089678,147.17,147.14,23.78675336]
[1750857932294,10.56089678,147.16,147.14,23.78675336]
[1750857932508,10.56089678,147.16,147.14,6.79613219]
[1750857932715,10.56089678,147.15,147.14,6.79613219]
[1750857934609,10.56089678,147.15,147.12,6.79717237]
[1750857934811,10.56089678,147.13,147.1,6.76]
[1750857935014,10.56089678,147.11,147.1,13.55789572]
[1750857935304,10.56089678,147.13,147.1,13.55789572]
[1750857935599,10.56089678,147.13,147.1,30.55313705]
[1750857935981,10.56089678,147.11,147.1,30.55313705]
[1750857936580,10.56089678,147.11,147.1,13.55789572]
[1750857938421,32.79550909,147.16,147.1,13.55789572]
[1750857938716,10.56089678,147.13,147.1,13.55789572]
[1750857939119,1.5769,147.18,147.11,10.56089678]
[1750857939290,10.56089678,147.16,147.11,10.56089678]
[1750857939488,1.5769,147.18,147.1,67.11403383]
[1750857939489,10.56089678,147.15,147.1,67.11403383]
[1750857940007,10.56089678,147.13,147.1,30.55313705]
[1750857940180,1.5769,147.18,147.1,30.55313705]
[1750857940384,10.56089678,147.13,147.1,30.55313705]
[1750857941223,10.56089678,147.11,147.1,6.79789572]
[1750857941943,10.56089678,147.12,147.1,6.79789572]
[1750857942094,10.56089678,147.13,147.1,6.79789572]
[1750857942299,10.56089678,147.14,147.1,34.35403383]
[1750857942498,10.56089678,147.14,147.1,23.79313705]
[1750857942724,10.56089678,147.12,147.1,6.79789572]
[1750857943101,10.56089678,147.13,147.1,6.79789572]
[1750857943825,10.56089678,147.12,147.08,34.35745851]
[1750857944031,10.56089678,147.12,147.08,23.79656173]
[1750857944827,6.79541409,147.16,147.08,23.79656173]
[1750857945007,20.22654886,147.18,147.08,23.79656173]
[1750857945008,10.56089678,147.12,147.08,23.79656173]
[1750857945530,6.79504055,147.17,147.08,23.79656173]
[1750857945531,10.56089678,147.11,147.08,23.79656173]
[1750857945826,10.56089678,147.12,147.08,23.79656173]
[1750857946334,10.56089678,147.12,147.08,34.35745851]
[1750857947533,10.56089678,147.12,147.08,23.79656173]
[1750857947946,6.2914254,147.16,147.08,17.35991772]
[1750857948254,10.56089678,147.13,147.08,17.35991772]
[1750857948662,10.56089678,147.13,147.09,10.56089678]
[1750857948826,26.0,147.16,147.09,10.56089678]
[1750857949026,10.56089678,147.13,147.09,10.56089678]
[1750857949426,26.0,147.16,147.09,10.56089678]
[1750857949643,5.06643572,147.15,147.1,10.56089678]
[1750857949841,5.06643572,147.14,147.11,17.3585312]
[1750857950145,7.8683254,147.18,147.11,34.35261725]
[1750857950359,10.56089678,147.15,147.11,34.35261725]
[1750857950531,10.56089678,147.17,147.12,10.56089678]
[1750857950731,5.06688713,147.16,147.14,10.56089678]
[1750857950938,1.5769,147.18,147.14,10.56089678]
[1750857951123,12.13779678,147.18,147.14,10.56089678]
[1750857951850,12.13779678,147.18,147.15,6.79578661]
[1750857952631,12.13779678,147.18,147.15,23.78525314]
[1750857952958,10.56089678,147.18,147.15,23.78525314]
[1750857953352,10.56089678,147.19,147.15,34.34614992]
[1750857955130,1.6176,147.22,147.15,34.34614992]
[1750857955336,5.06741642,147.21,147.18,10.56089678]
[1750857955536,1.6176,147.22,147.18,10.56089678]
[1750857955835,1.6176,147.22,147.19,6.7939398]
[1750857956059,14.5576254,147.26,147.19,17.35483658]
[1750857956229,10.56089678,147.24,147.2,10.56089678]
[1750857956946,10.56089678,147.24,147.19,23.77878931]
[1750857957251,8.2662,147.26,147.2,10.56089678]
[1750857957458,10.56089678,147.24,147.19,23.77878931]
[1750857957754,10.56089678,147.23,147.19,6.7939398]
[1750857957932,10.56089678,147.23,147.19,17.35483658]
[1750857958134,10.56089678,147.24,147.19,17.35483658]
[1750857958544,10.56089678,147.23,147.19,6.7939398]
[1750857958949,13.32851085,147.26,147.19,6.7939398]
[1750857958950,10.56089678,147.22,147.19,6.7939398]
[1750857959253,37.85348663,147.25,147.16,17.35622159]
[1750857959437,10.56089678,147.2,147.16,17.35622159]
[1750857959841,10.56089678,147.19,147.16,23.78363685]
[1750857960142,10.56089678,147.17,147.15,6.7956211]
[1750857960358,1.5563,147.19,147.15,6.7956211]
[1750857960559,10.56089678,147.16,147.15,6.7956211]
[1750857961037,10.56089678,147.2,147.15,17.35651788]
[1750857961353,10.56089678,147.23,147.18,10.56089678]
[1750857961553,10.56089678,147.23,147.19,36.56089678]
[1750857961936,10.56089678,147.23,147.2,6.79347826]
[1750857962260,10.56089678,147.23,147.2,23.77717391]
[1750857963054,10.56089678,147.24,147.2,34.33807069]
[1750857963357,10.56089678,147.24,147.2,33.46394526]
[1750857963563,10.56089678,147.24,147.2,22.90304848]
[1750857963758,10.56089678,147.25,147.2,33.46394526]
[1750857964071,10.56089678,147.24,147.2,33.46394526]
[1750857964365,5.06069063,147.27,147.2,33.46394526]
[1750857964579,5.06069063,147.27,147.22,10.56089678]
[1750857964863,5.06069063,147.27,147.21,6.74]
[1750857964864,12.08789678,147.28,147.21,6.74]
[1750857965062,6.68727511,147.32,147.22,44.64964886]
[1750857965260,10.56089678,147.29,147.25,10.56089678]
[1750857965764,10.56089678,147.27,147.22,44.64964886]
[1750857965956,10.56089678,147.27,147.24,23.77071447]
[1750857966262,10.56089678,147.29,147.25,10.56089678]
[1750857967069,10.56089678,147.26,147.24,6.7916327]
[1750857967277,10.56089678,147.28,147.24,34.33161125]
[1750857967444,8.41995091,147.32,147.24,34.33161125]
[1750857967638,10.56089678,147.28,147.24,34.33161125]
[1750857967960,10.56089678,147.29,147.26,6.7907103]
[1750857968157,8.42003832,147.32,147.23,6.792094]
[1750857968465,10.56089678,147.26,147.23,6.792094]
[1750857968762,8.42003832,147.32,147.23,6.792094]
[1750857968959,10.56089678,147.27,147.23,17.35299078]
[1750857969166,10.56089678,147.26,147.23,6.792094]
[1750857969864,10.56089678,147.24,147.23,6.792094]
[1750857970067,10.56089678,147.24,147.21,6.74]
[1750857970251,10.56089678,147.22,147.21,13.53284031]
[1750857970741,6.79039539,147.27,147.21,13.53284031]
[1750857971140,10.56089678,147.22,147.21,13.53284031]
[1750857971940,10.56089678,147.24,147.21,13.53284031]
[1750857972284,1.632,147.32,147.23,10.56089678]
[1750857972449,10.56089678,147.29,147.24,10.56089678]
[1750857972650,10.56089678,147.29,147.24,36.56089678]
[1750857972847,10.56089678,147.28,147.24,36.56089678]
[1750857973056,10.56089678,147.27,147.22,10.56089678]
[1750857974053,8.42006848,147.32,147.23,6.792094]
[1750857974054,10.56089678,147.26,147.23,6.792094]
[1750857974569,1.632,147.32,147.25,10.56089678]
[1750857974762,1.632,147.32,147.28,10.56089678]
[1750857974968,10.56089678,147.34,147.28,6.74]
[1750857975266,10.56089678,147.33,147.28,17.30089678]
[1750857975478,10.56089678,147.33,147.28,6.74]
[1750857975771,10.56089678,147.33,147.28,17.30089678]
[1750857976290,10.56089678,147.32,147.29,6.78932717]
[1750857977851,10.56089678,147.31,147.29,6.78932717]
[1750857978065,8.33290066,147.36,147.29,6.78932717]
[1750857978249,10.56089678,147.31,147.29,6.78932717]
[1750857979275,10.56089678,147.3,147.28,13.52964138]
[1750857979447,10.56089678,147.29,147.28,13.52964138]
[1750857979654,32.7871437,147.34,147.28,13.52964138]
[1750857979848,10.56089678,147.29,147.28,6.74]
[1750857980263,32.7871437,147.34,147.28,13.52975299]
[1750857980471,10.56089678,147.29,147.28,6.74]
[1750857982377,10.56089678,147.29,147.26,6.79057087]
[1750857982571,10.56089678,147.27,147.24,6.7916327]
[1750857982757,10.56089678,147.25,147.24,6.7916327]
[1750857982952,1.5988,147.29,147.22,16.98138197]
[1750857982953,10.56089678,147.27,147.22,17.30089678]
[1750857983770,1.5988,147.29,147.22,17.30089678]
[1750857983963,10.56089678,147.27,147.23,34.33322578]
[1750857984176,10.56089678,147.24,147.23,6.792094]
[1750857984688,10.56089678,147.25,147.23,6.792094]
[1750857985800,10.56089678,147.28,147.23,6.792094]
[1750857985995,10.56089678,147.27,147.23,34.33322578]
[1750857986197,10.56089678,147.28,147.23,34.33322578]
[1750857989812,1.5988,147.29,147.23,23.772329]
[1750857990011,10.56089678,147.26,147.23,23.772329]
[1750857990712,10.56089678,147.24,147.23,6.792094]
[1750857992102,8.38830295,147.29,147.23,6.792094]
[1750857992285,10.56089678,147.24,147.23,6.792094]
[1750857992711,10.56089678,147.24,147.22,6.74]
[1750857992885,10.56089678,147.23,147.22,6.74]
[1750857993084,10.56089678,147.25,147.22,13.53251342]
[1750857993285,10.56089678,147.26,147.22,24.0934102]
[1750857993688,10.56089678,147.26,147.22,13.53251342]
[1750857994114,10.56089678,147.25,147.22,13.53251342]
[1750857995529,10.56089678,147.23,147.22,6.74]
[1750857995988,10.56089678,147.23,147.17,6.74]
[1750857996190,10.56089678,147.2,147.18,6.79440141]
[1750857996389,1.621,147.22,147.18,6.79440141]
[1750857996713,10.56089678,147.25,147.2,10.56089678]
[1750857997107,10.56089678,147.24,147.2,10.56089678]
[1750857997410,10.56089678,147.24,147.21,6.79301677]
[1750857998694,10.56089678,147.22,147.21,6.79301677]
[1750857999294,10.56089678,147.22,147.19,6.7939398]
[1750857999913,1.621,147.26,147.19,6.7939398]
[1750858000092,6.67419372,147.26,147.19,6.7939398]
[1750858000294,10.56089678,147.23,147.19,17.35483658]
[1750858001097,10.56089678,147.24,147.19,17.35483658]
[1750858001297,10.56089678,147.24,147.19,34.33968609]
[1750858001499,10.56089678,147.24,147.19,23.77878931]
[1750858001806,10.56089678,147.24,147.19,34.33968609]
[1750858002196,10.56089678,147.23,147.19,34.33968609]
[1750858002626,10.56089678,147.22,147.19,23.77878931]
[1750858003033,10.56089678,147.23,147.19,23.77878931]
[1750858003420,10.56089678,147.22,147.19,23.77878931]
[1750858004658,10.56089678,147.2,147.18,6.79440141]
[1750858004857,5.05319372,147.24,147.18,6.79440141]
[1750858005041,10.56089678,147.21,147.18,6.79440141]
[1750858005240,5.05319372,147.24,147.18,6.79440141]
[1750858005447,10.56089678,147.22,147.18,17.35529819]
[1750858005753,10.56089678,147.22,147.18,6.79440141]
[1750858005951,10.56089678,147.21,147.18,6.79440141]
[1750858006256,10.56089678,147.19,147.17,6.72]
[1750858006456,10.56089678,147.18,147.17,6.72]
[1750858006640,10.56089678,147.18,147.14,27.55144654]
[1750858006835,10.56089678,147.18,147.14,34.34769501]
[1750858007858,10.56089678,147.17,147.14,6.79624847]
[1750858008061,1.5016,147.2,147.16,10.56089678]
[1750858008272,1.5016,147.2,147.14,6.79624847]
[1750858008273,12.06249678,147.2,147.14,23.78686964]
[1750858008568,10.56089678,147.18,147.14,34.34776642]
[1750858008763,10.56089678,147.18,147.14,23.78686964]
[1750858009055,10.56089678,147.18,147.14,34.34776642]
[1750858009646,1.5016,147.2,147.16,10.56089678]
[1750858009851,10.56089678,147.23,147.18,10.56089678]
[1750858010054,12.19509678,147.24,147.2,10.56089678]
[1750858010252,1.6342,147.24,147.2,10.56089678]
[1750858010446,1.6342,147.24,147.17,44.64964886]
[1750858010650,10.56089678,147.25,147.2,10.56089678]
[1750858010855,10.56089678,147.26,147.21,10.56089678]
[1750858011253,10.56089678,147.25,147.21,10.56089678]
[1750858011775,1.5342,147.28,147.23,10.56089678]
[1750858012174,10.56089678,147.27,147.23,10.56089678]
[1750858012762,10.56089678,147.27,147.22,10.56089678]
[1750858012964,10.56089678,147.27,147.23,6.792094]
[1750858013273,10.56089678,147.26,147.23,6.792094]
[1750858013481,10.56089678,147.25,147.23,6.792094]
[1750858013659,10.56089678,147.24,147.23,6.792094]
[1750858014174,10.56089678,147.27,147.23,6.792094]
[1750858015458,10.56089678,147.25,147.23,6.792094]
[1750858015755,10.56089678,147.26,147.23,6.792094]
[1750858016073,10.56089678,147.25,147.23,6.792094]
[1750858016652,10.56089678,147.26,147.23,6.792094]
[1750858017263,1.5342,147.28,147.23,6.792094]
[1750858017556,10.56089678,147.26,147.22,34.33484052]
[1750858018173,1.5342,147.28,147.24,10.56089678]
[1750858018350,12.09509678,147.28,147.23,10.56089678]
[1750858018555,10.56089678,147.27,147.23,10.56089678]
[1750858018989,1.5342,147.28,147.22,6.79255535]
[1750858019184,10.56089678,147.25,147.22,6.79255535]
[1750858019360,12.09509678,147.28,147.24,17.35252948]
[1750858019765,1.5342,147.28,147.24,17.35252948]
[1750858019969,16.90489678,147.3,147.25,10.56089678]
[1750858020184,10.56089678,147.28,147.24,6.7916327]
[1750858020387,10.56089678,147.26,147.24,6.7916327]
[1750858020589,13.13299877,147.3,147.2,32.72]
[1750858020590,12.17089678,147.25,147.2,6.79347826]
[1750858020763,1.61,147.25,147.2,6.79347826]
[1750858020961,10.56089678,147.22,147.2,6.79347826]
[1750858021185,10.56089678,147.22,147.17,27.54795576]
[1750858021186,10.56089678,147.21,147.18,6.79440141]
[1750858021493,8.40132767,147.25,147.17,23.78192206]
[1750858021661,10.56089678,147.2,147.17,6.79486308]
[1750858021856,36.56089678,147.24,147.19,10.56089678]
[1750858022082,10.56089678,147.21,147.17,23.78202078]
[1750858022285,10.56089678,147.22,147.18,10.56089678]
[1750858022879,10.56089678,147.23,147.18,10.56089678]
[1750858023474,10.56089678,147.22,147.19,6.7939398]
[1750858024064,10.56089678,147.21,147.19,6.7939398]
[1750858024488,10.56089678,147.21,147.17,6.79486308]
[1750858025182,10.56089678,147.2,147.17,6.79486308]
[1750858025964,10.56089678,147.19,147.17,6.79486308]
[1750858026170,6.1928,147.22,147.15,26.0]
[1750858026171,10.56089678,147.18,147.15,6.79578661]
[1750858026566,10.56089678,147.19,147.15,6.79578661]
[1750858027463,10.56089678,147.18,147.15,6.79578661]
[1750858027863,10.56089678,147.19,147.15,6.79578661]
[1750858028784,10.56089678,147.18,147.15,6.79578661]
[1750858029090,10.56089678,147.19,147.15,6.79578661]
[1750858030171,6.79305382,147.21,147.15,6.79578661]
[1750858030496,10.56089678,147.18,147.15,6.79578661]
[1750858031270,10.56089678,147.17,147.15,6.79578661]
[1750858031476,10.56089678,147.17,147.14,6.72]
[1750858031477,10.56089678,147.17,147.14,13.51612105]
[1750858031674,10.56089678,147.16,147.14,13.51612105]
[1750858032373,6.34458781,147.16,147.14,6.72]
[1750858032788,6.79447551,147.18,147.13,6.79659686]
[1750858033001,6.34458781,147.15,147.13,6.79659686]
[1750858033988,6.34458781,147.15,147.12,6.79717237]
[1750858035091,6.34458781,147.16,147.12,23.79010331]
[1750858035291,1.5071,147.19,147.13,6.34458781]
[1750858035598,6.34458781,147.17,147.13,6.34458781]
[1750858035819,1.5071,147.19,147.16,6.34458781]
[1750858035983,6.34458781,147.18,147.12,61.6425798]
[1750858036186,1.5071,147.19,147.13,13.1412982]
[1750858036389,6.34458781,147.17,147.13,13.1412982]
[1750858036709,1.5071,147.19,147.13,13.1412982]
[1750858036907,1.5071,147.19,147.13,30.13307418]
[1750858037205,6.34458781,147.18,147.13,30.13307418]
[1750858037405,6.34458781,147.18,147.13,23.78848637]
[1750858037609,6.34458781,147.18,147.14,6.34458781]
[1750858037983,6.34458781,147.18,147.15,6.79578661]
[1750858038712,7.85168781,147.19,147.15,6.79578661]
[1750858038910,6.34458781,147.21,147.16,6.34458781]
[1750858039235,1.5752,147.23,147.18,6.34458781]
[1750858039415,7.91978781,147.23,147.17,6.72]
[1750858039709,1.5752,147.23,147.17,13.06458781]
[1750858039913,6.34458781,147.22,147.17,13.06458781]
[1750858040102,6.34458781,147.22,147.18,13.13898922]
[1750858040291,1.5752,147.23,147.18,13.13898922]
[1750858040292,7.91978781,147.23,147.18,13.13898922]
[1750858040495,6.34458781,147.22,147.18,13.13898922]
[1750858041210,6.34458781,147.21,147.18,6.79440141]
[1750858043217,6.34458781,147.2,147.18,6.79440141]
[1750858043402,6.34458781,147.19,147.18,6.79440141]
[1750858043714,6.34458781,147.2,147.18,6.79440141]
[1750858044119,6.34458781,147.2,147.17,13.51477292]
[1750858044888,6.34458781,147.19,147.17,13.51477292]
[1750858045702,6.34458781,147.18,147.17,6.72]
[1750858047425,6.34458781,147.18,147.15,6.79558646]
[1750858047626,6.34458781,147.17,147.15,6.79558646]
[1750858048695,11.85275164,147.21,147.14,6.79624847]
[1750858048920,6.34458781,147.18,147.14,6.79624847]
[1750858051107,6.34458781,147.18,147.14,23.78686964]
[1750858051320,6.34458781,147.19,147.14,30.13145745]
[1750858051530,26.0,147.22,147.16,6.34458781]
[1750858051830,6.34458781,147.2,147.16,6.34458781]
[1750858052008,6.34458781,147.2,147.14,23.78686964]
[1750858052215,6.34458781,147.2,147.15,6.34458781]
[1750858052411,6.34458781,147.2,147.16,30.12822466]
[1750858053011,26.0,147.22,147.16,30.12822466]
[1750858053340,7.91978781,147.23,147.18,6.34458781]
[1750858053525,6.526,147.25,147.19,6.34458781]
[1750858053526,6.34458781,147.24,147.19,6.34458781]
[1750858053828,12.87058781,147.25,147.2,6.34458781]
[1750858054338,12.87058781,147.25,147.21,6.79301677]
[1750858054625,12.87058781,147.25,147.21,13.13760458]
[1750858054834,12.87058781,147.25,147.21,30.12014652]
[1750858055123,6.34458781,147.25,147.21,6.79301677]
[1750858056238,6.34458781,147.24,147.21,6.79301677]
[1750858056531,6.34458781,147.25,147.21,23.77555871]
[1750858056706,6.34458781,147.24,147.21,23.77555871]
[1750858057218,6.34458781,147.23,147.21,6.79301677]
[1750858057620,6.34458781,147.24,147.21,6.79301677]
[1750858059332,6.34458781,147.25,147.21,13.13760458]
[1750858060038,1.5254,147.27,147.23,6.34458781]
[1750858060213,6.34458781,147.25,147.21,23.77555871]
[1750858060415,1.5254,147.27,147.21,23.77555871]
[1750858060416,6.34458781,147.24,147.21,23.77555871]
[1750858060849,6.34458781,147.24,147.21,16.98254194]
[1750858062828,6.34458781,147.24,147.21,23.77555871]
[1750858063036,6.34458781,147.25,147.21,23.77555871]
[1750858064336,6.34458781,147.24,147.21,23.77555871]
[1750858066026,6.34458781,147.25,147.21,23.77555871]
[1750858066233,6.34458781,147.24,147.21,23.77555871]
[1750858067452,6.34458781,147.25,147.21,30.12014652]
[1750858067738,1.5254,147.27,147.22,6.34458781]
[1750858068043,7.86998781,147.27,147.22,6.34458781]
[1750858068233,1.5254,147.27,147.23,6.34458781]
[1750858068416,6.34458781,147.28,147.23,6.34458781]
[1750858068617,6.34458781,147.28,147.24,6.34458781]
[1750858068812,6.6432225,147.3,147.24,6.34458781]
[1750858069019,11.40631031,147.31,147.26,6.34458781]
[1750858069264,5.0617225,147.32,147.27,6.34458781]
[1750858069559,6.34458781,147.31,147.28,6.78978815]
[1750858070420,6.34458781,147.3,147.28,6.78978815]
[1750858070621,6.34458781,147.29,147.27,6.79018837]
[1750858070816,6.34458781,147.28,147.27,6.79018837]
[1750858071919,6.34458781,147.28,147.25,6.79117147]
[1750858072134,6.34458781,147.27,147.25,6.79117147]
[1750858072940,30.49068813,147.32,147.25,6.79117147]
[1750858073136,6.34458781,147.29,147.25,6.79117147]
[1750858076250,6.34458781,147.28,147.25,6.79117147]
[1750858077031,25.43768762,147.32,147.25,6.79117147]
[1750858077232,6.34458781,147.27,147.25,6.79117147]
[1750858077636,30.48611062,147.32,147.25,6.79117147]
[1750858077828,6.34458781,147.28,147.25,6.79117147]
[1750858078152,6.34458781,147.28,147.24,23.7707056]
[1750858078948,5.048423,147.32,147.25,6.34458781]
[1750858079151,6.34458781,147.29,147.25,6.34458781]
[1750858079343,6.34458781,147.27,147.24,23.7707056]
[1750858080070,6.34458781,147.26,147.24,6.7916327]
[1750858080246,6.34458781,147.25,147.23,6.792094]
[1750858080443,11.8372883,147.32,147.23,30.11691681]
[1750858080658,6.34458781,147.29,147.24,6.34458781]
[1750858080963,6.34458781,147.3,147.26,6.34458781]
[1750858081163,6.34458781,147.31,147.27,6.34458781]
[1750858081368,1.5137,147.34,147.23,30.173229]
[1750858081369,1.5137,147.34,147.29,6.34458781]
[1750858081662,6.34458781,147.33,147.29,6.34458781]
[1750858081878,1.5137,147.34,147.3,6.34458781]
[1750858082081,5.04899058,147.37,147.32,6.34458781]
[1750858082271,6.34458781,147.37,147.34,6.78702321]
[1750858083260,1.5794,147.38,147.34,13.13161102]
[1750858083478,1.448628,147.44,147.34,13.13161102]
[1750858083479,6.70318444,147.42,147.36,6.34458781]
[1750858083658,6.34458781,147.4,147.36,6.34458781]
[1750858084054,6.34458781,147.39,147.35,6.34458781]
[1750858084286,6.34458781,147.36,147.32,23.75780613]
[1750858084581,26.0,147.39,147.3,6.68]
[1750858084764,18.64964886,147.38,147.3,6.68]
[1750858084959,6.34458781,147.33,147.3,6.68]
[1750858085361,23.69096667,147.38,147.3,6.68]
[1750858085560,6.34458781,147.33,147.3,13.46873674]
[1750858085761,6.34458781,147.32,147.3,13.46873674]
[1750858086567,6.34458781,147.34,147.3,19.81332455]
[1750858087566,6.34458781,147.34,147.3,13.46873674]
[1750858088190,6.34458781,147.35,147.31,6.34458781]
[1750858088491,6.4531,147.41,147.32,6.34458781]
[1750858088674,6.34458781,147.38,147.33,6.34458781]
[1750858089275,6.34458781,147.38,147.3,56.44090238]
[1750858089471,32.4531,147.41,147.3,56.44090238]
[1750858089791,6.34458781,147.38,147.34,6.34458781]
[1750858089999,1.448628,147.44,147.37,6.34458781]
[1750858090215,1.448628,147.44,147.39,6.34458781]
[1750858090494,1.448628,147.44,147.37,6.68]
[1750858090695,1.448628,147.44,147.4,26.0]
[1750858090872,1.448628,147.44,147.41,6.34458781]
[1750858091065,1.448628,147.44,147.4,32.34458781]
[1750858091291,1.448628,147.44,147.41,6.34458781]
[1750858091468,1.448628,147.44,147.4,26.0]
[1750858091663,1.448628,147.44,147.43,6.34458781]
[1750858091871,1.448628,147.44,147.43,50.99423667]
[1750858092070,1.448628,147.44,147.43,57.77711668]
[1750858092269,1.448628,147.44,147.43,61.95621115]
[1750858092472,12.12868228,147.53,147.44,18.64964886]
[1750858092786,10.52368228,147.51,147.47,10.52368228]
[1750858092984,10.52368228,147.52,147.47,10.52368228]
[1750858093297,10.52368228,147.5,147.46,10.52368228]
[1750858093594,8.38331007,147.53,147.45,6.68]
[1750858093794,10.52368228,147.49,147.45,17.20368228]
[1750858093998,8.38331007,147.53,147.46,6.78150006]
[1750858094177,1.605,147.53,147.46,6.78150006]
[1750858094492,10.52368228,147.5,147.46,17.30518234]
[1750858094794,10.52368228,147.5,147.46,6.78150006]
[1750858094972,10.52368228,147.49,147.46,6.78150006]
[1750858095173,10.52368228,147.5,147.46,6.78150006]
[1750858095602,10.52368228,147.51,147.46,17.30518234]
[1750858096294,10.52368228,147.5,147.46,6.78150006]
[1750858096472,10.52368228,147.49,147.46,6.78150006]
[1750858096669,8.38333803,147.53,147.43,26.0]
[1750858096670,13.38234235,147.53,147.44,6.78226307]
[1750858096895,10.52368228,147.49,147.45,10.52368228]
[1750858098183,10.52368228,147.49,147.46,6.78150006]
[1750858099022,10.52368228,147.48,147.44,6.78241996]
[1750858099197,10.52368228,147.47,147.44,6.78241996]
[1750858101714,6.77989882,147.5,147.44,6.78241996]
[1750858102021,10.52368228,147.47,147.44,6.78241996]
[1750858102309,10.52368228,147.48,147.44,6.78241996]
[1750858102896,10.52368228,147.47,147.44,6.78241996]
[1750858103099,6.78012628,147.49,147.44,6.78241996]
[1750858103293,10.52368228,147.47,147.44,6.78241996]
[1750858103786,10.52368228,147.46,147.43,6.74]
[1750858103988,10.52368228,147.45,147.42,6.78306168]
[1750858104187,10.52368228,147.44,147.42,6.78306168]
[1750858104391,10.52368228,147.44,147.41,6.78362665]
[1750858104696,10.52368228,147.43,147.4,6.78410891]
[1750858104897,10.52368228,147.43,147.39,17.26368228]
[1750858104898,10.52368228,147.42,147.39,13.52469036]
[1750858105102,1.6365,147.46,147.39,13.52469036]
[1750858105304,10.52368228,147.44,147.39,41.01017466]
[1750858105692,10.52368228,147.44,147.4,10.52368228]
[1750858106311,10.52368228,147.44,147.39,41.01017466]
[1750858106522,10.52368228,147.41,147.39,6.74]
[1750858106811,26.0,147.44,147.39,13.5247162]
[1750858107021,6.78195998,147.45,147.39,6.74]
[1750858107213,10.52368228,147.4,147.39,6.74]
[1750858107722,10.52368228,147.41,147.39,13.5247208]
[1750858110915,27.6365,147.46,147.39,24.04840308]
[1750858111117,10.52368228,147.44,147.39,24.04840308]
[1750858111320,10.52368228,147.45,147.39,13.5247208]
[1750858111497,10.52368228,147.45,147.41,10.52368228]
[1750858112112,10.52368228,147.44,147.39,41.0102051]
[1750858112313,10.52368228,147.4,147.38,6.78502761]
[1750858112502,10.52368228,147.39,147.38,6.78502761]
[1750858112690,10.52368228,147.4,147.38,6.78502761]
[1750858113113,10.52368228,147.4,147.36,23.75135721]
[1750858113390,10.52368228,147.4,147.36,34.27503949]
[1750858113888,32.78212448,147.45,147.36,34.27503949]
[1750858114099,10.52368228,147.41,147.36,34.27503949]